[Event "Titled Tuesday Blitz May 4 2021"]
[White "Shahinyan, David"]
[Black "Quirke, Jeffrey"]
[WhiteFideId "13304380"]
[BlackFideId "2013029"]
[WhiteElo "2372"]
[BlackElo "2251"]
[Result "1-0"]
[Round "08"]
[TimeControl "180+1"]
[Date "2021.05.04"]
[WhiteClock "0:00:53"]
[BlackClock "0:00:01"]

1. e4 {[%clk 0:03:00]}  c6 {[%clk 0:02:59]} 2. d4 {[%clk 0:02:59]}  d5 {[%clk 0:03:00]} 3. exd5 {[%clk 0:03:00]}  cxd5 {[%clk 0:02:59]} 4. Bd3 {[%clk 0:03:00]}  Nc6 {[%clk 0:02:58]} 5. c3 {[%clk 0:03:01]}  Qc7 {[%clk 0:02:58]} 6. Ne2 {[%clk 0:03:00]}  Bg4 {[%clk 0:02:58]} 7. O-O {[%clk 0:02:59]}  e6 {[%clk 0:02:56]} 8. Qe1 {[%clk 0:03:00]}  Nf6 {[%clk 0:02:50]} 9. f3 {[%clk 0:02:59]}  Bh5 {[%clk 0:02:51]} 10. Bg5 {[%clk 0:02:59]}  Bg6 {[%clk 0:02:40]} 11. Bxg6 {[%clk 0:02:55]}  hxg6 {[%clk 0:02:39]} 12. Qg3 {[%clk 0:02:39]}  Bd6 {[%clk 0:02:36]} 13. Bf4 {[%clk 0:02:38]}  Bxf4 {[%clk 0:02:21]} 14. Qxf4 {[%clk 0:02:38]}  Qxf4 {[%clk 0:02:11]} 15. Nxf4 {[%clk 0:02:38]}  O-O {[%clk 0:02:00]} 16. Nd3 {[%clk 0:02:35]}  Nd7 {[%clk 0:01:55]} 17. Nd2 {[%clk 0:02:33]}  Rfc8 {[%clk 0:01:52]} 18. Rfe1 {[%clk 0:02:31]}  Na5 {[%clk 0:01:35]} 19. Kf2 {[%clk 0:02:20]}  Nc4 {[%clk 0:01:34]} 20. Nxc4 {[%clk 0:02:20]}  Rxc4 {[%clk 0:01:34]} 21. Ke2 {[%clk 0:02:12]}  Rac8 {[%clk 0:01:29]} 22. Kd2 {[%clk 0:02:12]}  b5 {[%clk 0:01:28]} 23. h4 {[%clk 0:02:07]}  a5 {[%clk 0:01:27]} 24. a3 {[%clk 0:02:08]}  R4c7 {[%clk 0:01:19]} 25. g4 {[%clk 0:01:40]}  Nb6 {[%clk 0:01:18]} 26. Nc5 {[%clk 0:01:40]}  Nc4+ {[%clk 0:01:17]} 27. Kc2 {[%clk 0:01:40]}  a4 {[%clk 0:01:13]} 28. Re2 {[%clk 0:01:33]}  Rxc5 {[%clk 0:01:03]} 29. dxc5 {[%clk 0:01:33]}  Rxc5 {[%clk 0:01:04]} 30. Rh1 {[%clk 0:01:30]}  Rc6 {[%clk 0:01:00]} 31. Kd3 {[%clk 0:01:26]}  f6 {[%clk 0:00:56]} 32. h5 {[%clk 0:01:26]}  gxh5 {[%clk 0:00:49]} 33. gxh5 {[%clk 0:01:26]}  Ne5+ {[%clk 0:00:41]} 34. Ke3 {[%clk 0:01:25]}  Kh7 {[%clk 0:00:19]} 35. f4 {[%clk 0:01:18]}  Nc4+ {[%clk 0:00:17]} 36. Kd4 {[%clk 0:01:18]}  Kh6 {[%clk 0:00:11]} 37. Rg2 {[%clk 0:01:17]}  Nd6 {[%clk 0:00:07]} 38. Kd3 {[%clk 0:01:12]}  Nf5 {[%clk 0:00:07]} 39. Re1 {[%clk 0:00:58]}  Kh7 {[%clk 0:00:02]} 40. Rge2 {[%clk 0:00:54]}  Nd6 {[%clk 0:00:01]} 41. Rxe6 {[%clk 0:00:53]} 1-0


[Site "https://www.chess.com"]

[Event "Titled Tuesday Blitz May 4 2021"]
[White "Shapiro, David"]
[Black "Djordjevic, Vuk"]
[WhiteFideId "24133523"]
[BlackFideId "902098"]
[WhiteElo "2261"]
[BlackElo "2463"]
[Result "1-0"]
[Round "08"]
[TimeControl "180+1"]
[Date "2021.05.04"]
[WhiteClock "0:00:06"]
[BlackClock "0:00:03"]

1. d4 {[%clk 0:03:00]}  e6 {[%clk 0:03:00]} 2. c4 {[%clk 0:03:00]}  Nf6 {[%clk 0:03:00]} 3. Nf3 {[%clk 0:03:00]}  b6 {[%clk 0:02:58]} 4. g3 {[%clk 0:03:00]}  Ba6 {[%clk 0:02:59]} 5. b3 {[%clk 0:02:58]}  Bb4+ {[%clk 0:02:59]} 6. Bd2 {[%clk 0:02:59]}  Be7 {[%clk 0:02:59]} 7. Bg2 {[%clk 0:02:59]}  c6 {[%clk 0:02:59]} 8. Bc3 {[%clk 0:02:59]}  d5 {[%clk 0:03:00]} 9. Ne5 {[%clk 0:02:57]}  Nfd7 {[%clk 0:03:00]} 10. Nxd7 {[%clk 0:02:57]}  Nxd7 {[%clk 0:03:00]} 11. Nd2 {[%clk 0:02:57]}  O-O {[%clk 0:03:00]} 12. O-O {[%clk 0:02:58]}  Rc8 {[%clk 0:03:00]} 13. e4 {[%clk 0:02:58]}  b5 {[%clk 0:03:00]} 14. Rc1 {[%clk 0:02:55]}  c5 {[%clk 0:02:49]} 15. exd5 {[%clk 0:02:48]}  exd5 {[%clk 0:02:49]} 16. Re1 {[%clk 0:02:36]}  bxc4 {[%clk 0:02:43]} 17. bxc4 {[%clk 0:02:35]}  dxc4 {[%clk 0:02:40]} 18. d5 {[%clk 0:02:34]}  Bf6 {[%clk 0:02:36]} 19. Bxf6 {[%clk 0:02:18]}  Qxf6 {[%clk 0:02:30]} 20. Nxc4 {[%clk 0:01:57]}  Rce8 {[%clk 0:02:01]} 21. Rxe8 {[%clk 0:01:47]}  Rxe8 {[%clk 0:01:59]} 22. Qa4 {[%clk 0:01:48]}  Rd8 {[%clk 0:01:56]} 23. Na5 {[%clk 0:01:41]}  Nb6 {[%clk 0:01:37]} 24. Qa3 {[%clk 0:01:25]}  c4 {[%clk 0:01:32]} 25. Nc6 {[%clk 0:01:21]}  Re8 {[%clk 0:01:04]} 26. Qxa6 {[%clk 0:01:18]}  Qb2 {[%clk 0:01:03]} 27. Rf1 {[%clk 0:01:02]}  c3 {[%clk 0:01:01]} 28. Nd4 {[%clk 0:00:36]}  Qd2 {[%clk 0:00:52]} 29. Nb3 {[%clk 0:00:32]}  Qh6 {[%clk 0:00:24]} 30. Qxa7 {[%clk 0:00:18]}  Qf6 {[%clk 0:00:23]} 31. Qc7 {[%clk 0:00:12]}  Rc8 {[%clk 0:00:22]} 32. Qf4 {[%clk 0:00:13]}  Qg6 {[%clk 0:00:17]} 33. Qd4 {[%clk 0:00:12]}  h5 {[%clk 0:00:15]} 34. d6 {[%clk 0:00:12]}  Nd7 {[%clk 0:00:07]} 35. Bh3 {[%clk 0:00:12]}  f5 {[%clk 0:00:05]} 36. Qd5+ {[%clk 0:00:11]}  Qf7 {[%clk 0:00:03]} 37. Qxf7+ {[%clk 0:00:11]}  Kxf7 {[%clk 0:00:04]} 38. Bxf5 {[%clk 0:00:11]}  Rd8 {[%clk 0:00:04]} 39. Bxd7 {[%clk 0:00:10]}  Rxd7 {[%clk 0:00:05]} 40. Rc1 {[%clk 0:00:11]}  Rxd6 {[%clk 0:00:05]} 41. Rxc3 {[%clk 0:00:11]}  Ra6 {[%clk 0:00:06]} 42. Rc2 {[%clk 0:00:11]}  Kf6 {[%clk 0:00:07]} 43. Nc5 {[%clk 0:00:11]}  Ra3 {[%clk 0:00:07]} 44. Ne4+ {[%clk 0:00:10]}  Kf5 {[%clk 0:00:07]} 45. Nd2 {[%clk 0:00:10]}  Kg4 {[%clk 0:00:07]} 46. Kg2 {[%clk 0:00:10]}  Kf5 {[%clk 0:00:07]} 47. Nb1 {[%clk 0:00:10]}  Ra4 {[%clk 0:00:06]} 48. a3 {[%clk 0:00:10]}  Ra5 {[%clk 0:00:06]} 49. Ra2 {[%clk 0:00:10]}  Ke4 {[%clk 0:00:04]} 50. a4 {[%clk 0:00:09]}  Kd3 {[%clk 0:00:05]} 51. Nd2 {[%clk 0:00:08]}  Kc3 {[%clk 0:00:05]} 52. Ne4+ {[%clk 0:00:08]}  Kb3 {[%clk 0:00:04]} 53. Ra1 {[%clk 0:00:08]}  Kb2 {[%clk 0:00:05]} 54. Rd1 {[%clk 0:00:07]}  Rxa4 {[%clk 0:00:05]} 55. Ng5 {[%clk 0:00:07]}  Ra6 {[%clk 0:00:03]} 56. h4 {[%clk 0:00:07]}  Kc3 {[%clk 0:00:03]} 57. Rd7 {[%clk 0:00:07]}  g6 {[%clk 0:00:03]} 58. Rd6 {[%clk 0:00:05]}  Ra4 {[%clk 0:00:01]} 59. Rxg6 {[%clk 0:00:05]}  Kd4 {[%clk 0:00:02]} 60. Rh6 {[%clk 0:00:06]}  Ke5 {[%clk 0:00:02]} 61. Rxh5 {[%clk 0:00:06]}  Kf6 {[%clk 0:00:03]} 62. Nf3 {[%clk 0:00:07]}  Kg6 {[%clk 0:00:03]} 63. Rg5+ {[%clk 0:00:07]}  Kf6 {[%clk 0:00:03]} 64. Rb5 {[%clk 0:00:06]}  Ra3 {[%clk 0:00:04]} 65. Rb4 {[%clk 0:00:06]}  Kg6 {[%clk 0:00:05]} 66. Rf4 {[%clk 0:00:07]}  Kh5 {[%clk 0:00:05]} 67. Rf5+ {[%clk 0:00:07]}  Kg6 {[%clk 0:00:05]} 68. g4 {[%clk 0:00:07]}  Ra4 {[%clk 0:00:04]} 69. h5+ {[%clk 0:00:08]}  Kh6 {[%clk 0:00:04]} 70. Rf6+ {[%clk 0:00:08]}  Kg7 {[%clk 0:00:04]} 71. Rg6+ {[%clk 0:00:08]}  Kh7 {[%clk 0:00:05]} 72. Ng5+ {[%clk 0:00:08]}  Kh8 {[%clk 0:00:05]} 73. Nf7+ {[%clk 0:00:08]}  Kh7 {[%clk 0:00:04]} 74. Ng5+ {[%clk 0:00:08]}  Kh8 {[%clk 0:00:04]} 75. Rh6+ {[%clk 0:00:08]}  Kg7 {[%clk 0:00:04]} 76. Rh7+ {[%clk 0:00:08]}  Kf6 {[%clk 0:00:05]} 77. f4 {[%clk 0:00:05]}  Rxf4 {[%clk 0:00:04]} 78. Rf7+ {[%clk 0:00:05]}  Kxg5 {[%clk 0:00:02]} 79. Rxf4 {[%clk 0:00:06]}  Kh4 {[%clk 0:00:02]} 80. h6 {[%clk 0:00:06]}  Kg5 {[%clk 0:00:02]} 81. h7 {[%clk 0:00:06]}  Kg6 {[%clk 0:00:02]} 82. h8=Q {[%clk 0:00:06]}  Kg5 {[%clk 0:00:03]} 83. Qf6# {[%clk 0:00:06]} 1-0


[Site "https://www.chess.com"]

[Event "Titled Tuesday Blitz May 4 2021"]
[White "Shvedova, Alexandra"]
[Black "Zia, Tahsin Tajwar"]
[WhiteFideId "54154782"]
[BlackFideId "10211888"]
[WhiteElo "1887"]
[BlackElo "1678"]
[Result "1-0"]
[Round "08"]
[TimeControl "180+1"]
[Date "2021.05.04"]
[WhiteClock "0:01:28"]
[BlackClock "0:00:08"]

1. e4 {[%clk 0:03:00]}  c6 {[%clk 0:02:56]} 2. d4 {[%clk 0:03:00]}  d5 {[%clk 0:02:56]} 3. e5 {[%clk 0:03:01]}  Bf5 {[%clk 0:02:53]} 4. h4 {[%clk 0:03:01]}  h5 {[%clk 0:02:52]} 5. Bg5 {[%clk 0:03:00]}  Qb6 {[%clk 0:02:51]} 6. Bd3 {[%clk 0:03:00]}  Bxd3 {[%clk 0:02:48]} 7. Qxd3 {[%clk 0:03:00]}  Qa6 {[%clk 0:02:49]} 8. Qd2 {[%clk 0:02:55]}  e6 {[%clk 0:02:37]} 9. Ne2 {[%clk 0:02:55]}  Nd7 {[%clk 0:02:18]} 10. c3 {[%clk 0:02:52]}  Be7 {[%clk 0:02:15]} 11. Be3 {[%clk 0:02:36]}  Nh6 {[%clk 0:02:14]} 12. Ng3 {[%clk 0:02:29]}  Ng4 {[%clk 0:02:06]} 13. Bg5 {[%clk 0:02:29]}  Bxg5 {[%clk 0:02:01]} 14. hxg5 {[%clk 0:02:26]}  g6 {[%clk 0:01:58]} 15. f3 {[%clk 0:02:23]}  Ndxe5 {[%clk 0:01:55]} 16. dxe5 {[%clk 0:02:21]}  Nxe5 {[%clk 0:01:54]} 17. Na3 {[%clk 0:02:13]}  Nd3+ {[%clk 0:01:52]} 18. Kd1 {[%clk 0:02:13]}  O-O-O {[%clk 0:01:34]} 19. Kc2 {[%clk 0:02:12]}  Ne5 {[%clk 0:01:17]} 20. Rad1 {[%clk 0:01:56]}  Rd7 {[%clk 0:01:00]} 21. Kb1 {[%clk 0:01:52]}  Rhd8 {[%clk 0:00:48]} 22. Qf4 {[%clk 0:01:39]}  Nc4 {[%clk 0:00:38]} 23. Nxc4 {[%clk 0:01:39]}  dxc4 {[%clk 0:00:39]} 24. Rxd7 {[%clk 0:01:38]}  Rxd7 {[%clk 0:00:28]} 25. Ne4 {[%clk 0:01:38]}  Qb6 {[%clk 0:00:13]} 26. Nd6+ {[%clk 0:01:36]}  Kd8 {[%clk 0:00:11]} 27. Nxf7+ {[%clk 0:01:33]}  Ke7 {[%clk 0:00:08]} 28. Ne5 {[%clk 0:01:28]} 1-0


[Site "https://www.chess.com"]

[Event "Titled Tuesday Blitz May 4 2021"]
[White "Skatchkov, Pavel"]
[Black "Gritsenko, Nikolai"]
[WhiteFideId "4121848"]
[BlackFideId "14112493"]
[WhiteElo "2476"]
[BlackElo "2389"]
[Result "0-1"]
[Round "08"]
[TimeControl "180+1"]
[Date "2021.05.04"]
[WhiteClock "0:01:47"]
[BlackClock "0:00:06"]

1. d4 {[%clk 0:02:59]}  d5 {[%clk 0:02:59]} 2. c4 {[%clk 0:03:00]}  Nc6 {[%clk 0:02:59]} 3. Nf3 {[%clk 0:03:00]}  Bg4 {[%clk 0:02:59]} 4. Nc3 {[%clk 0:03:01]}  e6 {[%clk 0:02:57]} 5. cxd5 {[%clk 0:03:01]}  exd5 {[%clk 0:02:57]} 6. Bf4 {[%clk 0:03:01]}  Bd6 {[%clk 0:02:55]} 7. Nxd5 {[%clk 0:02:50]}  Bxf4 {[%clk 0:02:53]} 8. Nxf4 {[%clk 0:02:51]}  Bxf3 {[%clk 0:02:52]} 9. gxf3 {[%clk 0:02:52]}  Qxd4 {[%clk 0:02:42]} 10. Qxd4 {[%clk 0:02:50]}  Nxd4 {[%clk 0:02:41]} 11. O-O-O {[%clk 0:02:50]}  Rd8 {[%clk 0:02:34]} 12. e3 {[%clk 0:02:41]}  Ne6 {[%clk 0:02:27]} 13. Nxe6 {[%clk 0:02:21]}  Rxd1+ {[%clk 0:02:21]} 14. Kxd1 {[%clk 0:02:22]}  fxe6 {[%clk 0:02:21]} 15. Bc4 {[%clk 0:02:23]}  Ke7 {[%clk 0:02:21]} 16. Rg1 {[%clk 0:02:23]}  g6 {[%clk 0:02:19]} 17. Rg5 {[%clk 0:02:24]}  Nf6 {[%clk 0:02:01]} 18. Ke2 {[%clk 0:02:23]}  Rd8 {[%clk 0:01:52]} 19. h4 {[%clk 0:02:23]}  Rd6 {[%clk 0:01:43]} 20. Rc5 {[%clk 0:02:23]}  c6 {[%clk 0:01:40]} 21. Ra5 {[%clk 0:02:23]}  a6 {[%clk 0:01:40]} 22. Re5 {[%clk 0:02:17]}  Nd7 {[%clk 0:01:26]} 23. Rg5 {[%clk 0:02:08]}  Nf6 {[%clk 0:01:21]} 24. f4 {[%clk 0:02:03]}  b5 {[%clk 0:00:53]} 25. Bb3 {[%clk 0:02:03]}  Rd7 {[%clk 0:00:27]} 26. Re5 {[%clk 0:02:03]}  Rd6 {[%clk 0:00:27]} 27. Kf3 {[%clk 0:02:03]}  Nd7 {[%clk 0:00:24]} 28. Re4 {[%clk 0:02:04]}  c5 {[%clk 0:00:24]} 29. Ke2 {[%clk 0:02:02]}  c4 {[%clk 0:00:24]} 30. Bc2 {[%clk 0:02:03]}  Kf6 {[%clk 0:00:23]} 31. a4 {[%clk 0:02:01]}  Rd5 {[%clk 0:00:23]} 32. axb5 {[%clk 0:02:00]}  axb5 {[%clk 0:00:23]} 33. b3 {[%clk 0:02:00]}  Nc5 {[%clk 0:00:16]} 34. bxc4 {[%clk 0:01:57]}  Nxe4 {[%clk 0:00:15]} 35. cxd5 {[%clk 0:01:57]}  exd5 {[%clk 0:00:16]} 36. Bb3 {[%clk 0:01:55]}  Ke6 {[%clk 0:00:15]} 37. f3 {[%clk 0:01:55]}  Nc5 {[%clk 0:00:15]} 38. Ba2 {[%clk 0:01:54]}  Kd6 {[%clk 0:00:14]} 39. Kd2 {[%clk 0:01:55]}  b4 {[%clk 0:00:15]} 40. Kc2 {[%clk 0:01:55]}  Kc6 {[%clk 0:00:14]} 41. Kb2 {[%clk 0:01:49]}  Kd6 {[%clk 0:00:14]} 42. Bb3 {[%clk 0:01:46]}  Nxb3 {[%clk 0:00:08]} 43. Kxb3 {[%clk 0:01:47]}  Kc5 {[%clk 0:00:08]} 44. e4 {[%clk 0:01:48]}  d4 {[%clk 0:00:08]} 45. f5 {[%clk 0:01:47]}  gxf5 {[%clk 0:00:07]} 46. exf5 {[%clk 0:01:48]}  d3 {[%clk 0:00:07]} 47. f6 {[%clk 0:01:47]}  Kd6 {[%clk 0:00:07]} 48. Kc4 {[%clk 0:01:47]}  d2 {[%clk 0:00:06]} 0-1


[Site "https://www.chess.com"]

[Event "Titled Tuesday Blitz May 4 2021"]
[White "Skoberne, Jure"]
[Black "Iskusnyh, Sergei"]
[WhiteFideId "14604299"]
[BlackFideId "4120027"]
[WhiteElo "2559"]
[BlackElo "2492"]
[Result "0-1"]
[Round "08"]
[TimeControl "180+1"]
[Date "2021.05.04"]
[WhiteClock "0:00:02"]
[BlackClock "0:00:07"]

1. d4 {[%clk 0:03:00]}  d5 {[%clk 0:02:59]} 2. Bf4 {[%clk 0:02:59]}  Nf6 {[%clk 0:02:58]} 3. e3 {[%clk 0:02:59]}  c5 {[%clk 0:02:58]} 4. Nd2 {[%clk 0:02:57]}  Nc6 {[%clk 0:02:56]} 5. Ngf3 {[%clk 0:02:56]}  cxd4 {[%clk 0:02:56]} 6. exd4 {[%clk 0:02:56]}  Bg4 {[%clk 0:02:49]} 7. c3 {[%clk 0:02:56]}  e6 {[%clk 0:02:48]} 8. Be2 {[%clk 0:02:49]}  Be7 {[%clk 0:02:39]} 9. h3 {[%clk 0:02:46]}  Bh5 {[%clk 0:02:36]} 10. Ne5 {[%clk 0:02:46]}  Bxe2 {[%clk 0:02:26]} 11. Qxe2 {[%clk 0:02:46]}  O-O {[%clk 0:02:25]} 12. O-O {[%clk 0:02:36]}  Nd7 {[%clk 0:02:19]} 13. Nd3 {[%clk 0:02:27]}  Bg5 {[%clk 0:01:57]} 14. Bxg5 {[%clk 0:02:25]}  Qxg5 {[%clk 0:01:57]} 15. f4 {[%clk 0:02:26]}  Qe7 {[%clk 0:01:39]} 16. f5 {[%clk 0:01:57]}  exf5 {[%clk 0:01:35]} 17. Qf3 {[%clk 0:01:48]}  Nf6 {[%clk 0:01:32]} 18. Rae1 {[%clk 0:01:48]}  Qd6 {[%clk 0:01:12]} 19. Qxf5 {[%clk 0:01:46]}  Rae8 {[%clk 0:01:11]} 20. Ne5 {[%clk 0:01:45]}  Re6 {[%clk 0:01:03]} 21. Ndf3 {[%clk 0:01:34]}  Ne4 {[%clk 0:00:57]} 22. Rxe4 {[%clk 0:00:52]}  dxe4 {[%clk 0:00:55]} 23. Ng5 {[%clk 0:00:52]}  g6 {[%clk 0:00:39]} 24. Qxe4 {[%clk 0:00:52]}  Nxe5 {[%clk 0:00:36]} 25. Nxe6 {[%clk 0:00:52]}  Qxe6 {[%clk 0:00:32]} 26. dxe5 {[%clk 0:00:52]}  b6 {[%clk 0:00:25]} 27. a4 {[%clk 0:00:45]}  Re8 {[%clk 0:00:24]} 28. Qf4 {[%clk 0:00:41]}  Re7 {[%clk 0:00:23]} 29. Re1 {[%clk 0:00:34]}  f6 {[%clk 0:00:22]} 30. Rf1 {[%clk 0:00:28]}  Qxe5 {[%clk 0:00:19]} 31. Qxf6 {[%clk 0:00:28]}  Qxf6 {[%clk 0:00:19]} 32. Rxf6 {[%clk 0:00:29]}  Kg7 {[%clk 0:00:18]} 33. Rf4 {[%clk 0:00:28]}  Re2 {[%clk 0:00:17]} 34. Rb4 {[%clk 0:00:27]}  Kf7 {[%clk 0:00:15]} 35. a5 {[%clk 0:00:20]}  bxa5 {[%clk 0:00:15]} 36. Rb7+ {[%clk 0:00:19]}  Kf6 {[%clk 0:00:15]} 37. Rxa7 {[%clk 0:00:15]}  Rxb2 {[%clk 0:00:14]} 38. Rxa5 {[%clk 0:00:16]}  Rc2 {[%clk 0:00:14]} 39. Rc5 {[%clk 0:00:16]}  h5 {[%clk 0:00:14]} 40. h4 {[%clk 0:00:16]}  Ke6 {[%clk 0:00:14]} 41. Kh2 {[%clk 0:00:15]}  Kf6 {[%clk 0:00:13]} 42. Kg3 {[%clk 0:00:15]}  Ke6 {[%clk 0:00:13]} 43. Kf3 {[%clk 0:00:16]}  Kf6 {[%clk 0:00:13]} 44. g3 {[%clk 0:00:17]}  Rd2 {[%clk 0:00:12]} 45. Rc6+ {[%clk 0:00:16]}  Kf5 {[%clk 0:00:12]} 46. Rc5+ {[%clk 0:00:16]}  Kf6 {[%clk 0:00:12]} 47. Ke4 {[%clk 0:00:17]}  Rg2 {[%clk 0:00:12]} 48. Rc6+ {[%clk 0:00:16]}  Kg7 {[%clk 0:00:12]} 49. Kf3 {[%clk 0:00:17]}  Rc2 {[%clk 0:00:11]} 50. c4 {[%clk 0:00:12]}  Kf7 {[%clk 0:00:11]} 51. Kf4 {[%clk 0:00:12]}  Rc3 {[%clk 0:00:11]} 52. Rc8 {[%clk 0:00:08]}  Kf6 {[%clk 0:00:11]} 53. Rc6+ {[%clk 0:00:08]}  Kf7 {[%clk 0:00:11]} 54. Rc8 {[%clk 0:00:08]}  Kf6 {[%clk 0:00:11]} 55. Rc7 {[%clk 0:00:09]}  Ke6 {[%clk 0:00:10]} 56. c5 {[%clk 0:00:05]}  Kf6 {[%clk 0:00:09]} 57. Rc6+ {[%clk 0:00:05]}  Kf7 {[%clk 0:00:09]} 58. g4 {[%clk 0:00:06]}  Rc4+ {[%clk 0:00:09]} 59. Ke5 {[%clk 0:00:05]}  hxg4 {[%clk 0:00:09]} 60. Kd5 {[%clk 0:00:02]}  Rc1 {[%clk 0:00:08]} 61. Rc7+ {[%clk 0:00:02]}  Kf6 {[%clk 0:00:08]} 62. Ra7 {[%clk 0:00:02]}  g3 {[%clk 0:00:07]} 63. Ra2 {[%clk 0:00:02]}  Kf5 {[%clk 0:00:06]} 64. Rg2 {[%clk 0:00:03]}  Rd1+ {[%clk 0:00:06]} 65. Kc4 {[%clk 0:00:02]}  Kg4 {[%clk 0:00:06]} 66. c6 {[%clk 0:00:01]}  Rc1+ {[%clk 0:00:06]} 67. Kd5 {[%clk 0:00:01]}  Kh3 {[%clk 0:00:06]} 68. Rd2 {[%clk 0:00:01]}  g2 {[%clk 0:00:06]} 69. Rxg2 {[%clk 0:00:02]}  Kxg2 {[%clk 0:00:07]} 0-1


[Site "https://www.chess.com"]

[Event "Titled Tuesday Blitz May 4 2021"]
[White "Smietanska, Wiktoria"]
[Black "Mayaud, Raphael"]
[WhiteFideId "21869359"]
[BlackFideId "627151"]
[WhiteElo "1780"]
[BlackElo "2191"]
[Result "0-1"]
[Round "08"]
[TimeControl "180+1"]
[Date "2021.05.04"]
[WhiteClock "0:00:01"]
[BlackClock "0:00:07"]

1. e4 {[%clk 0:03:00]}  d5 {[%clk 0:02:59]} 2. exd5 {[%clk 0:03:00]}  Qxd5 {[%clk 0:03:00]} 3. Nc3 {[%clk 0:02:59]}  Qa5 {[%clk 0:03:00]} 4. d4 {[%clk 0:02:58]}  c6 {[%clk 0:03:00]} 5. Nf3 {[%clk 0:02:58]}  Nf6 {[%clk 0:03:01]} 6. Bd3 {[%clk 0:02:58]}  Bg4 {[%clk 0:03:01]} 7. O-O {[%clk 0:02:57]}  e6 {[%clk 0:03:01]} 8. h3 {[%clk 0:02:57]}  Bh5 {[%clk 0:03:00]} 9. Bf4 {[%clk 0:02:56]}  Be7 {[%clk 0:03:00]} 10. Ne4 {[%clk 0:02:55]}  Nxe4 {[%clk 0:02:48]} 11. Bxe4 {[%clk 0:02:56]}  O-O {[%clk 0:02:43]} 12. c4 {[%clk 0:02:54]}  Nd7 {[%clk 0:02:22]} 13. Bxh7+ {[%clk 0:02:49]}  Kxh7 {[%clk 0:02:11]} 14. Ng5+ {[%clk 0:02:49]}  Kg6 {[%clk 0:01:46]} 15. Qd3+ {[%clk 0:02:22]}  Qf5 {[%clk 0:01:45]} 16. Ne4 {[%clk 0:01:56]}  Qxf4 {[%clk 0:01:09]} 17. Nc5+ {[%clk 0:01:40]}  Qf5 {[%clk 0:01:01]} 18. Qg3+ {[%clk 0:01:39]}  Qg5 {[%clk 0:00:53]} 19. Qd3+ {[%clk 0:01:37]}  Qf5 {[%clk 0:00:41]} 20. Qg3+ {[%clk 0:01:31]}  Kh7 {[%clk 0:00:37]} 21. Nxd7 {[%clk 0:01:29]}  Rfd8 {[%clk 0:00:37]} 22. Ne5 {[%clk 0:01:21]}  Rxd4 {[%clk 0:00:33]} 23. Rfe1 {[%clk 0:01:08]}  Rad8 {[%clk 0:00:31]} 24. Qe3 {[%clk 0:01:05]}  Bg6 {[%clk 0:00:25]} 25. g4 {[%clk 0:01:04]}  Qc2 {[%clk 0:00:20]} 26. b3 {[%clk 0:00:59]}  Bf6 {[%clk 0:00:14]} 27. Nxg6 {[%clk 0:00:54]}  Kxg6 {[%clk 0:00:12]} 28. h4 {[%clk 0:00:30]}  Qd3 {[%clk 0:00:12]} 29. h5+ {[%clk 0:00:29]}  Kh7 {[%clk 0:00:12]} 30. f3 {[%clk 0:00:23]}  Qxe3+ {[%clk 0:00:12]} 31. Rxe3 {[%clk 0:00:23]}  Bg5 {[%clk 0:00:12]} 32. Rc3 {[%clk 0:00:21]}  Rd2 {[%clk 0:00:09]} 33. Re1 {[%clk 0:00:20]}  Bf6 {[%clk 0:00:09]} 34. Rcc1 {[%clk 0:00:18]}  c5 {[%clk 0:00:09]} 35. f4 {[%clk 0:00:16]}  Bd4+ {[%clk 0:00:08]} 36. Kh1 {[%clk 0:00:16]}  Rxa2 {[%clk 0:00:09]} 37. g5 {[%clk 0:00:15]}  Bf2 {[%clk 0:00:09]} 38. Red1 {[%clk 0:00:14]}  Rdd2 {[%clk 0:00:09]} 39. Rxd2 {[%clk 0:00:12]}  Rxd2 {[%clk 0:00:09]} 40. Kg2 {[%clk 0:00:12]}  Be3+ {[%clk 0:00:07]} 41. Kf3 {[%clk 0:00:12]}  Bd4 {[%clk 0:00:08]} 42. Rb1 {[%clk 0:00:04]}  Rd3+ {[%clk 0:00:08]} 43. Kg4 {[%clk 0:00:04]}  a5 {[%clk 0:00:07]} 44. f5 {[%clk 0:00:04]}  exf5+ {[%clk 0:00:06]} 45. Kxf5 {[%clk 0:00:05]}  Rh3 {[%clk 0:00:06]} 46. g6+ {[%clk 0:00:05]}  fxg6+ {[%clk 0:00:06]} 47. hxg6+ {[%clk 0:00:06]}  Kh6 {[%clk 0:00:06]} 48. Rf1 {[%clk 0:00:04]}  Rh2 {[%clk 0:00:06]} 49. Re1 {[%clk 0:00:03]}  Rf2+ {[%clk 0:00:06]} 50. Kg4 {[%clk 0:00:02]}  Kxg6 {[%clk 0:00:06]} 51. Re6+ {[%clk 0:00:03]}  Rf6 {[%clk 0:00:07]} 52. Re7 {[%clk 0:00:02]}  Rf7 {[%clk 0:00:07]} 53. Re6+ {[%clk 0:00:02]}  Rf6 {[%clk 0:00:08]} 54. Re7 {[%clk 0:00:02]}  b6 {[%clk 0:00:08]} 55. Rb7 {[%clk 0:00:02]}  Kh6 {[%clk 0:00:08]} 56. Ra7 {[%clk 0:00:02]}  g6 {[%clk 0:00:08]} 57. Ra8 {[%clk 0:00:02]}  Kg7 {[%clk 0:00:07]} 58. Ra7+ {[%clk 0:00:02]}  Rf7 {[%clk 0:00:08]} 59. Ra8 {[%clk 0:00:02]}  Re7 {[%clk 0:00:07]} 60. Rb8 {[%clk 0:00:02]}  Re6 {[%clk 0:00:07]} 61. Kg5 {[%clk 0:00:02]}  Re5+ {[%clk 0:00:07]} 62. Kg4 {[%clk 0:00:02]}  Re6 {[%clk 0:00:07]} 63. Rb7+ {[%clk 0:00:02]}  Kf6 {[%clk 0:00:06]} 64. Kf4 {[%clk 0:00:02]}  g5+ {[%clk 0:00:06]} 65. Kg4 {[%clk 0:00:03]}  Kg6 {[%clk 0:00:06]} 66. Rb8 {[%clk 0:00:03]}  Re4+ {[%clk 0:00:06]} 67. Kf3 {[%clk 0:00:02]}  Re6 {[%clk 0:00:07]} 68. Kg4 {[%clk 0:00:01]}  Bf6 {[%clk 0:00:07]} 69. Rg8+ {[%clk 0:00:01]}  Kf7 {[%clk 0:00:07]} 70. Rb8 {[%clk 0:00:01]}  Re4+ {[%clk 0:00:07]} 71. Kf5 {[%clk 0:00:01]}  Re5+ {[%clk 0:00:07]} 0-1


[Site "https://www.chess.com"]